[Event "Titled Tuesday Blitz March 22 Late 2022"]
[White "Weetik, Vjacheslav"]
[Black "Fedoseev, Vladimir"]
[WhiteFideId "4153472"]
[BlackFideId "24130737"]
[WhiteElo "2469"]
[BlackElo "2726"]
[Result "0-1"]
[Round "03"]
[TimeControl "180+1"]
[Date "2022.03.22"]
[WhiteClock "0:00:43"]
[BlackClock "0:00:29"]

1. d4 {[%clk 0:02:54]}  d5 {[%clk 0:03:00]} 2. Bf4 {[%clk 0:02:54]}  c5 {[%clk 0:03:00]} 3. e3 {[%clk 0:02:54]}  cxd4 {[%clk 0:03:00]} 4. exd4 {[%clk 0:02:54]}  Nc6 {[%clk 0:03:01]} 5. c3 {[%clk 0:02:55]}  Bf5 {[%clk 0:03:00]} 6. Qb3 {[%clk 0:02:54]}  Qd7 {[%clk 0:02:55]} 7. Nf3 {[%clk 0:02:53]}  f6 {[%clk 0:02:55]} 8. c4 {[%clk 0:02:44]}  Na5 {[%clk 0:02:38]} 9. Qb5 {[%clk 0:02:26]}  Nxc4 {[%clk 0:02:38]} 10. Bxc4 {[%clk 0:02:22]}  dxc4 {[%clk 0:02:37]} 11. Qxc4 {[%clk 0:02:12]}  e5 {[%clk 0:02:27]} 12. dxe5 {[%clk 0:02:02]}  Rc8 {[%clk 0:02:21]} 13. Qe2 {[%clk 0:01:57]}  Bd3 {[%clk 0:02:11]} 14. Qe3 {[%clk 0:01:53]}  Bc5 {[%clk 0:02:05]} 15. Qd2 {[%clk 0:01:41]}  Ne7 {[%clk 0:01:57]} 16. Nc3 {[%clk 0:01:41]}  O-O {[%clk 0:01:50]} 17. O-O-O {[%clk 0:01:41]}  Rfd8 {[%clk 0:01:15]} 18. exf6 {[%clk 0:01:36]}  Ng6 {[%clk 0:01:04]} 19. Be3 {[%clk 0:01:22]}  Bb4 {[%clk 0:00:44]} 20. Ne1 {[%clk 0:01:22]}  Rxc3+ {[%clk 0:00:42]} 21. bxc3 {[%clk 0:01:14]}  Ba3+ {[%clk 0:00:41]} 22. Qb2 {[%clk 0:01:15]}  Bxb2+ {[%clk 0:00:40]} 23. Kxb2 {[%clk 0:01:15]}  Qb5+ {[%clk 0:00:39]} 24. Ka1 {[%clk 0:01:15]}  Rd7 {[%clk 0:00:35]} 25. fxg7 {[%clk 0:00:51]}  Be4 {[%clk 0:00:30]} 26. Rc1 {[%clk 0:00:45]}  Ne5 {[%clk 0:00:30]} 27. Bd4 {[%clk 0:00:43]}  Nc4 {[%clk 0:00:29]} 0-1


[Site "https://www.chess.com"]

[Event "Titled Tuesday Blitz March 22 Late 2022"]
[White "Winkels, Marcel"]
[Black "Degtiarev, Evgeny"]
[WhiteFideId "1003887"]
[BlackFideId "4149610"]
[WhiteElo "1900"]
[BlackElo "2218"]
[Result "1/2-1/2"]
[Round "03"]
[TimeControl "180+1"]
[Date "2022.03.22"]
[WhiteClock "0:00:25"]
[BlackClock "0:00:04"]

1. e4 {[%clk 0:03:00]}  e5 {[%clk 0:02:58]} 2. Nf3 {[%clk 0:02:59]}  Nc6 {[%clk 0:02:58]} 3. Bc4 {[%clk 0:03:00]}  Bc5 {[%clk 0:02:58]} 4. c3 {[%clk 0:02:55]}  Nf6 {[%clk 0:02:55]} 5. d4 {[%clk 0:02:54]}  exd4 {[%clk 0:02:44]} 6. cxd4 {[%clk 0:02:53]}  Bb4+ {[%clk 0:02:42]} 7. Nbd2 {[%clk 0:02:48]}  Nxe4 {[%clk 0:02:26]} 8. d5 {[%clk 0:02:47]}  Ne7 {[%clk 0:02:20]} 9. Qc2 {[%clk 0:02:34]}  Nxd2 {[%clk 0:02:11]} 10. Bxd2 {[%clk 0:02:33]}  Bxd2+ {[%clk 0:02:08]} 11. Nxd2 {[%clk 0:02:25]}  d6 {[%clk 0:02:06]} 12. O-O-O {[%clk 0:02:24]}  O-O {[%clk 0:02:03]} 13. Rhe1 {[%clk 0:02:14]}  Ng6 {[%clk 0:01:51]} 14. g3 {[%clk 0:01:58]}  a6 {[%clk 0:01:44]} 15. f4 {[%clk 0:01:57]}  Bg4 {[%clk 0:01:40]} 16. Be2 {[%clk 0:01:54]}  Bxe2 {[%clk 0:01:36]} 17. Rxe2 {[%clk 0:01:54]}  Rc8 {[%clk 0:01:36]} 18. Kb1 {[%clk 0:01:46]}  c5 {[%clk 0:01:29]} 19. h4 {[%clk 0:01:44]}  Re8 {[%clk 0:01:23]} 20. Rde1 {[%clk 0:01:38]}  Rxe2 {[%clk 0:01:23]} 21. Rxe2 {[%clk 0:01:36]}  b5 {[%clk 0:01:23]} 22. h5 {[%clk 0:01:36]}  Nf8 {[%clk 0:01:23]} 23. Qe4 {[%clk 0:01:27]}  c4 {[%clk 0:01:21]} 24. Nf3 {[%clk 0:01:16]}  c3 {[%clk 0:01:09]} 25. Ng5 {[%clk 0:01:07]}  cxb2 {[%clk 0:00:59]} 26. Rxb2 {[%clk 0:01:04]}  Qc7 {[%clk 0:00:54]} 27. Rc2 {[%clk 0:01:01]}  Qxc2+ {[%clk 0:00:32]} 28. Qxc2 {[%clk 0:00:59]}  Rxc2 {[%clk 0:00:33]} 29. Kxc2 {[%clk 0:00:59]}  Nd7 {[%clk 0:00:31]} 30. Ne4 {[%clk 0:00:58]}  Nb6 {[%clk 0:00:31]} 31. Nxd6 {[%clk 0:00:57]}  Nxd5 {[%clk 0:00:31]} 32. a3 {[%clk 0:00:52]}  g6 {[%clk 0:00:16]} 33. h6 {[%clk 0:00:51]}  f5 {[%clk 0:00:14]} 34. Nb7 {[%clk 0:00:49]}  Kf7 {[%clk 0:00:10]} 35. Nc5 {[%clk 0:00:48]}  Nc7 {[%clk 0:00:09]} 36. Kc3 {[%clk 0:00:45]}  Kf6 {[%clk 0:00:10]} 37. Kb4 {[%clk 0:00:43]}  g5 {[%clk 0:00:10]} 38. Ka5 {[%clk 0:00:43]}  gxf4 {[%clk 0:00:10]} 39. gxf4 {[%clk 0:00:41]}  Nd5 {[%clk 0:00:09]} 40. Nxa6 {[%clk 0:00:41]}  Nxf4 {[%clk 0:00:09]} 41. Kxb5 {[%clk 0:00:41]}  Ne6 {[%clk 0:00:09]} 42. Nc5 {[%clk 0:00:40]}  f4 {[%clk 0:00:08]} 43. Nd3 {[%clk 0:00:37]}  f3 {[%clk 0:00:08]} 44. a4 {[%clk 0:00:36]}  Nd4+ {[%clk 0:00:07]} 45. Kb6 {[%clk 0:00:36]}  Nb3 {[%clk 0:00:06]} 46. a5 {[%clk 0:00:35]}  Nxa5 {[%clk 0:00:06]} 47. Kxa5 {[%clk 0:00:35]}  Kg5 {[%clk 0:00:05]} 48. Kb5 {[%clk 0:00:36]}  Kxh6 {[%clk 0:00:06]} 49. Kc4 {[%clk 0:00:36]}  Kg5 {[%clk 0:00:06]} 50. Kd4 {[%clk 0:00:36]}  Kg4 {[%clk 0:00:06]} 51. Ke3 {[%clk 0:00:36]}  Kg3 {[%clk 0:00:06]} 52. Nf2 {[%clk 0:00:34]}  h5 {[%clk 0:00:06]} 53. Ne4+ {[%clk 0:00:34]}  Kg2 {[%clk 0:00:06]} 54. Nf2 {[%clk 0:00:33]}  h4 {[%clk 0:00:06]} 55. Ng4 {[%clk 0:00:32]}  h3 {[%clk 0:00:05]} 56. Nf2 {[%clk 0:00:27]}  h2 {[%clk 0:00:05]} 57. Nh1 {[%clk 0:00:26]}  Kxh1 {[%clk 0:00:04]} 58. Kf2 {[%clk 0:00:25]} 1/2-1/2


[Site "https://www.chess.com"]

[Event "Titled Tuesday Blitz March 22 Late 2022"]
[White "Yi, Richard"]
[Black "Tanenbaum, Zachary"]
[WhiteFideId "2079518"]
[BlackFideId "2060850"]
[WhiteElo "2147"]
[BlackElo "2168"]
[Result "0-1"]
[Round "03"]
[TimeControl "180+1"]
[Date "2022.03.22"]
[WhiteClock "0:00:01"]
[BlackClock "0:00:04"]

1. d4 {[%clk 0:02:57]}  d5 {[%clk 0:02:59]} 2. c4 {[%clk 0:02:57]}  dxc4 {[%clk 0:02:59]} 3. e3 {[%clk 0:02:57]}  e5 {[%clk 0:02:59]} 4. Nf3 {[%clk 0:02:53]}  exd4 {[%clk 0:02:54]} 5. Qxd4 {[%clk 0:02:50]}  Qxd4 {[%clk 0:02:54]} 6. Nxd4 {[%clk 0:02:51]}  a6 {[%clk 0:02:54]} 7. Bxc4 {[%clk 0:02:42]}  Nf6 {[%clk 0:02:54]} 8. Be2 {[%clk 0:02:38]}  Bd6 {[%clk 0:02:45]} 9. O-O {[%clk 0:02:36]}  O-O {[%clk 0:02:45]} 10. Bf3 {[%clk 0:02:34]}  c5 {[%clk 0:02:32]} 11. Nb3 {[%clk 0:02:32]}  Nbd7 {[%clk 0:02:32]} 12. Na5 {[%clk 0:02:22]}  Bc7 {[%clk 0:02:24]} 13. Nc4 {[%clk 0:02:19]}  Rb8 {[%clk 0:02:22]} 14. a4 {[%clk 0:02:07]}  b5 {[%clk 0:02:22]} 15. axb5 {[%clk 0:02:08]}  axb5 {[%clk 0:02:22]} 16. Na5 {[%clk 0:02:02]}  Ne5 {[%clk 0:02:20]} 17. Nc6 {[%clk 0:02:01]}  Nxf3+ {[%clk 0:02:12]} 18. gxf3 {[%clk 0:02:02]}  Rb6 {[%clk 0:02:12]} 19. Ne7+ {[%clk 0:01:58]}  Kh8 {[%clk 0:02:12]} 20. Ra8 {[%clk 0:01:54]}  Bb8 {[%clk 0:02:04]} 21. Nxc8 {[%clk 0:01:34]}  Rxc8 {[%clk 0:02:05]} 22. f4 {[%clk 0:01:35]}  g5 {[%clk 0:01:15]} 23. Kg2 {[%clk 0:01:10]}  gxf4 {[%clk 0:01:13]} 24. exf4 {[%clk 0:01:11]}  Nd5 {[%clk 0:01:08]} 25. Kf3 {[%clk 0:01:10]}  Rf6 {[%clk 0:00:44]} 26. Nc3 {[%clk 0:01:01]}  Nxf4 {[%clk 0:00:38]} 27. Nxb5 {[%clk 0:00:56]}  Nd5+ {[%clk 0:00:25]} 28. Ke4 {[%clk 0:00:49]}  Nb4 {[%clk 0:00:23]} 29. f4 {[%clk 0:00:40]}  Rb6 {[%clk 0:00:21]} 30. Nc3 {[%clk 0:00:28]}  Kg7 {[%clk 0:00:20]} 31. Be3 {[%clk 0:00:23]}  Re6+ {[%clk 0:00:19]} 32. Kf3 {[%clk 0:00:22]}  Rxe3+ {[%clk 0:00:17]} 33. Kxe3 {[%clk 0:00:23]}  Bxf4+ {[%clk 0:00:18]} 34. Rxf4 {[%clk 0:00:19]}  Rxa8 {[%clk 0:00:19]} 35. Rc4 {[%clk 0:00:20]}  Re8+ {[%clk 0:00:17]} 36. Ne4 {[%clk 0:00:18]}  Nd5+ {[%clk 0:00:12]} 37. Kf3 {[%clk 0:00:18]}  Rb8 {[%clk 0:00:11]} 38. Rxc5 {[%clk 0:00:16]}  Rb3+ {[%clk 0:00:10]} 39. Kg4 {[%clk 0:00:13]}  Ne3+ {[%clk 0:00:08]} 40. Kf4 {[%clk 0:00:12]}  Ng2+ {[%clk 0:00:08]} 41. Kg4 {[%clk 0:00:08]}  Rxb2 {[%clk 0:00:07]} 42. Rg5+ {[%clk 0:00:09]}  Kf8 {[%clk 0:00:07]} 43. Nf6 {[%clk 0:00:08]}  Ne3+ {[%clk 0:00:06]} 44. Kf4 {[%clk 0:00:08]}  Rf2+ {[%clk 0:00:06]} 45. Ke5 {[%clk 0:00:03]}  Nc4+ {[%clk 0:00:06]} 46. Kd4 {[%clk 0:00:02]}  Rf4+ {[%clk 0:00:05]} 47. Kc3 {[%clk 0:00:02]}  Rxf6 {[%clk 0:00:05]} 48. Kxc4 {[%clk 0:00:02]}  Rf2 {[%clk 0:00:04]} 49. Rh5 {[%clk 0:00:02]}  Kg7 {[%clk 0:00:05]} 50. Kd4 {[%clk 0:00:03]}  Kg6 {[%clk 0:00:04]} 51. Rh3 {[%clk 0:00:04]}  f5 {[%clk 0:00:04]} 52. Ke3 {[%clk 0:00:05]}  Rf1 {[%clk 0:00:04]} 53. Ke2 {[%clk 0:00:05]}  Rf4 {[%clk 0:00:03]} 54. Ke3 {[%clk 0:00:05]}  Ra4 {[%clk 0:00:03]} 55. Kf2 {[%clk 0:00:05]}  Kg5 {[%clk 0:00:03]} 56. Rg3+ {[%clk 0:00:05]}  Kf6 {[%clk 0:00:03]} 57. Rh3 {[%clk 0:00:05]}  Kg6 {[%clk 0:00:04]} 58. Rg3+ {[%clk 0:00:06]}  Rg4 {[%clk 0:00:04]} 59. Rh3 {[%clk 0:00:04]}  h5 {[%clk 0:00:05]} 60. Ra3 {[%clk 0:00:03]}  Kg5 {[%clk 0:00:05]} 61. Rb3 {[%clk 0:00:03]}  Rf4+ {[%clk 0:00:05]} 62. Kg2 {[%clk 0:00:02]}  h4 {[%clk 0:00:06]} 63. h3 {[%clk 0:00:01]}  Rd4 {[%clk 0:00:06]} 64. Rb2 {[%clk 0:00:01]}  Rd3 {[%clk 0:00:05]} 65. Rf2 {[%clk 0:00:02]}  Rg3+ {[%clk 0:00:06]} 66. Kh2 {[%clk 0:00:02]}  f4 {[%clk 0:00:06]} 67. Re2 {[%clk 0:00:03]}  Re3 {[%clk 0:00:05]} 68. Rf2 {[%clk 0:00:03]}  f3 {[%clk 0:00:04]} 69. Rf1 {[%clk 0:00:03]}  Kf4 {[%clk 0:00:05]} 70. Rf2 {[%clk 0:00:03]}  Re2 {[%clk 0:00:05]} 71. Kg1 {[%clk 0:00:03]}  Kg3 {[%clk 0:00:04]} 72. Rf1 {[%clk 0:00:01]}  f2+ {[%clk 0:00:04]} 73. Kh1 {[%clk 0:00:01]}  Re1 {[%clk 0:00:04]} 74. Rg1+ {[%clk 0:00:01]}  Rxg1# {[%clk 0:00:04]} 0-1


[Site "https://www.chess.com"]

[Event "Titled Tuesday Blitz March 22 Late 2022"]
[White "Yordanov, Nikolay Plamenov"]
[Black "Bachmann, Axel"]
[WhiteFideId "2907445"]
[BlackFideId "3700488"]
[WhiteElo "2248"]
[BlackElo "2587"]
[Result "1/2-1/2"]
[Round "03"]
[TimeControl "180+1"]
[Date "2022.03.22"]
[WhiteClock "0:00:41"]
[BlackClock "0:00:10"]

1. d4 {[%clk 0:03:00]}  Nf6 {[%clk 0:02:59]} 2. Bf4 {[%clk 0:02:59]}  b6 {[%clk 0:02:58]} 3. e3 {[%clk 0:03:00]}  g6 {[%clk 0:02:57]} 4. h3 {[%clk 0:02:59]}  Bg7 {[%clk 0:02:57]} 5. Nf3 {[%clk 0:02:59]}  O-O {[%clk 0:02:57]} 6. Be2 {[%clk 0:03:00]}  Bb7 {[%clk 0:02:56]} 7. O-O {[%clk 0:03:00]}  d6 {[%clk 0:02:48]} 8. c4 {[%clk 0:02:59]}  Ne4 {[%clk 0:02:46]} 9. Nbd2 {[%clk 0:02:59]}  e5 {[%clk 0:02:32]} 10. Bh2 {[%clk 0:02:50]}  Nxd2 {[%clk 0:02:14]} 11. Qxd2 {[%clk 0:02:47]}  exd4 {[%clk 0:02:05]} 12. exd4 {[%clk 0:02:42]}  Nd7 {[%clk 0:02:04]} 13. Rfe1 {[%clk 0:02:40]}  Re8 {[%clk 0:02:03]} 14. Bf4 {[%clk 0:02:39]}  Qe7 {[%clk 0:01:54]} 15. Bg5 {[%clk 0:02:33]}  Qf8 {[%clk 0:01:53]} 16. Rad1 {[%clk 0:02:29]}  h6 {[%clk 0:01:53]} 17. Bf4 {[%clk 0:02:28]}  Nf6 {[%clk 0:01:50]} 18. Qc1 {[%clk 0:02:18]}  Nh5 {[%clk 0:01:44]} 19. Be3 {[%clk 0:02:13]}  Re7 {[%clk 0:01:34]} 20. d5 {[%clk 0:02:13]}  Rae8 {[%clk 0:01:32]} 21. Nd4 {[%clk 0:02:06]}  Ng3 {[%clk 0:01:17]} 22. Bf3 {[%clk 0:01:59]}  Bxd4 {[%clk 0:01:08]} 23. Bxd4 {[%clk 0:01:51]}  Nf5 {[%clk 0:01:04]} 24. Bc3 {[%clk 0:01:47]}  Rxe1+ {[%clk 0:01:02]} 25. Rxe1 {[%clk 0:01:48]}  Rxe1+ {[%clk 0:00:55]} 26. Qxe1 {[%clk 0:01:49]}  Qe7 {[%clk 0:00:54]} 27. Qd2 {[%clk 0:01:45]}  Kh7 {[%clk 0:00:50]} 28. Bg4 {[%clk 0:01:44]}  Bc8 {[%clk 0:00:49]} 29. Bxf5 {[%clk 0:01:43]}  Bxf5 {[%clk 0:00:46]} 30. Qd4 {[%clk 0:01:41]}  f6 {[%clk 0:00:37]} 31. Qxf6 {[%clk 0:01:22]}  Qxf6 {[%clk 0:00:36]} 32. Bxf6 {[%clk 0:01:23]}  Bb1 {[%clk 0:00:34]} 33. a3 {[%clk 0:01:21]}  Ba2 {[%clk 0:00:33]} 34. Bd8 {[%clk 0:01:21]}  Bxc4 {[%clk 0:00:32]} 35. Bxc7 {[%clk 0:01:22]}  Bxd5 {[%clk 0:00:32]} 36. Bxd6 {[%clk 0:01:21]}  a6 {[%clk 0:00:27]} 37. f3 {[%clk 0:01:18]}  Kg7 {[%clk 0:00:27]} 38. Kf2 {[%clk 0:01:17]}  Kf6 {[%clk 0:00:27]} 39. Ke3 {[%clk 0:01:16]}  Ke6 {[%clk 0:00:26]} 40. Bf8 {[%clk 0:01:15]}  h5 {[%clk 0:00:24]} 41. b4 {[%clk 0:01:14]}  Bc4 {[%clk 0:00:19]} 42. Bg7 {[%clk 0:01:10]}  Kf5 {[%clk 0:00:18]} 43. Bd4 {[%clk 0:01:09]}  b5 {[%clk 0:00:13]} 44. g4+ {[%clk 0:01:08]}  hxg4 {[%clk 0:00:13]} 45. fxg4+ {[%clk 0:01:08]}  Ke6 {[%clk 0:00:14]} 46. Kf4 {[%clk 0:01:06]}  Bd3 {[%clk 0:00:13]} 47. h4 {[%clk 0:01:05]}  Bc2 {[%clk 0:00:13]} 48. h5 {[%clk 0:01:04]}  gxh5 {[%clk 0:00:13]} 49. gxh5 {[%clk 0:01:05]}  Bb1 {[%clk 0:00:12]} 50. Kg5 {[%clk 0:01:03]}  Kf7 {[%clk 0:00:11]} 51. h6 {[%clk 0:01:03]}  Bc2 {[%clk 0:00:11]} 52. Kg4 {[%clk 0:00:59]}  Bb1 {[%clk 0:00:10]} 53. Kf4 {[%clk 0:00:55]}  Ke6 {[%clk 0:00:11]} 54. Bg7 {[%clk 0:00:51]}  Bc2 {[%clk 0:00:11]} 55. Ke3 {[%clk 0:00:51]}  Kd5 {[%clk 0:00:09]} 56. Kf4 {[%clk 0:00:50]}  Ke6 {[%clk 0:00:09]} 57. Ke3 {[%clk 0:00:50]}  Kd5 {[%clk 0:00:09]} 58. Kd2 {[%clk 0:00:51]}  Bb1 {[%clk 0:00:09]} 59. Ke3 {[%clk 0:00:44]}  Bh7 {[%clk 0:00:09]} 60. Kf4 {[%clk 0:00:44]}  Ke6 {[%clk 0:00:09]} 61. Kg5 {[%clk 0:00:44]}  Bb1 {[%clk 0:00:07]} 62. Bf8 {[%clk 0:00:45]}  Bc2 {[%clk 0:00:06]} 63. Bc5 {[%clk 0:00:45]}  Bb1 {[%clk 0:00:07]} 64. Kh5 {[%clk 0:00:44]}  Bc2 {[%clk 0:00:07]} 65. Kg4 {[%clk 0:00:45]}  Bb1 {[%clk 0:00:07]} 66. Kf3 {[%clk 0:00:45]}  Bc2 {[%clk 0:00:07]} 67. Ke3 {[%clk 0:00:45]}  Kd5 {[%clk 0:00:07]} 68. Kf4 {[%clk 0:00:45]}  Ke6 {[%clk 0:00:07]} 69. Kg5 {[%clk 0:00:43]}  Bb1 {[%clk 0:00:07]} 70. Be3 {[%clk 0:00:43]}  Bc2 {[%clk 0:00:07]} 71. Bf2 {[%clk 0:00:41]}  Bb1 {[%clk 0:00:08]} 72. Bg3 {[%clk 0:00:41]}  Bc2 {[%clk 0:00:08]} 73. Kf4 {[%clk 0:00:39]}  Bb1 {[%clk 0:00:08]} 74. Ke3 {[%clk 0:00:38]}  Kd5 {[%clk 0:00:08]} 75. Kd2 {[%clk 0:00:38]}  Bh7 {[%clk 0:00:08]} 76. Kc3 {[%clk 0:00:37]}  Bg6 {[%clk 0:00:08]} 77. Bh4 {[%clk 0:00:37]}  Bh7 {[%clk 0:00:08]} 78. Bg5 {[%clk 0:00:38]}  Bg6 {[%clk 0:00:08]} 79. Bd2 {[%clk 0:00:38]}  Bh7 {[%clk 0:00:08]} 80. Bc1 {[%clk 0:00:38]}  Bg6 {[%clk 0:00:09]} 81. Bd2 {[%clk 0:00:39]}  Bh7 {[%clk 0:00:09]} 82. Bc1 {[%clk 0:00:40]}  Bg6 {[%clk 0:00:10]} 83. Bd2 {[%clk 0:00:41]} 1/2-1/2


[Site "https://www.chess.com"]

[Event "Titled Tuesday Blitz March 22 Late 2022"]
[White "Yuan, Qingyu"]
[Black "Janaszak, Dawid"]
[WhiteFideId "8609772"]
[BlackFideId "1119206"]
[WhiteElo "2792"]
[BlackElo "2543"]
[Result "0-1"]
[Round "03"]
[TimeControl "180+1"]
[Date "2022.03.22"]
[WhiteClock "0:00:22"]
[BlackClock "0:00:50"]

1. e4 {[%clk 0:03:00]}  c5 {[%clk 0:02:59]} 2. Nf3 {[%clk 0:03:01]}  Nc6 {[%clk 0:02:59]} 3. d4 {[%clk 0:03:01]}  cxd4 {[%clk 0:03:00]} 4. Nxd4 {[%clk 0:03:02]}  g6 {[%clk 0:03:00]} 5. c4 {[%clk 0:03:00]}  e5 {[%clk 0:03:00]} 6. Nb5 {[%clk 0:02:54]}  d6 {[%clk 0:03:00]} 7. N1c3 {[%clk 0:02:45]}  a6 {[%clk 0:03:00]} 8. Na3 {[%clk 0:02:45]}  Be6 {[%clk 0:02:57]} 9. Be2 {[%clk 0:02:43]}  Bg7 {[%clk 0:02:56]} 10. O-O {[%clk 0:02:43]}  Nge7 {[%clk 0:02:55]} 11. Nc2 {[%clk 0:02:28]}  O-O {[%clk 0:02:55]} 12. Be3 {[%clk 0:02:28]}  f5 {[%clk 0:02:48]} 13. Nd5 {[%clk 0:02:17]}  Bxd5 {[%clk 0:02:28]} 14. cxd5 {[%clk 0:02:03]}  Nb8 {[%clk 0:02:28]} 15. f3 {[%clk 0:02:03]}  Nd7 {[%clk 0:02:28]} 16. Bd3 {[%clk 0:01:58]}  f4 {[%clk 0:02:27]} 17. Bf2 {[%clk 0:01:58]}  g5 {[%clk 0:02:27]} 18. a4 {[%clk 0:01:51]}  a5 {[%clk 0:02:20]} 19. Na3 {[%clk 0:01:51]}  b6 {[%clk 0:02:16]} 20. Bb5 {[%clk 0:01:48]}  Nc5 {[%clk 0:02:16]} 21. Rb1 {[%clk 0:01:45]}  h5 {[%clk 0:02:14]} 22. b4 {[%clk 0:01:42]}  axb4 {[%clk 0:02:15]} 23. Rxb4 {[%clk 0:01:42]}  Ng6 {[%clk 0:02:15]} 24. Bc6 {[%clk 0:01:25]}  Rb8 {[%clk 0:02:06]} 25. Nc4 {[%clk 0:01:25]}  g4 {[%clk 0:01:58]} 26. Kh1 {[%clk 0:01:19]}  g3 {[%clk 0:01:51]} 27. Bg1 {[%clk 0:01:19]}  gxh2 {[%clk 0:01:44]} 28. Bf2 {[%clk 0:01:20]}  Bf6 {[%clk 0:01:41]} 29. Qe2 {[%clk 0:01:17]}  Rf7 {[%clk 0:01:23]} 30. Rfb1 {[%clk 0:01:16]}  Rg7 {[%clk 0:01:15]} 31. Rxb6 {[%clk 0:01:13]}  Rxb6 {[%clk 0:01:15]} 32. Rxb6 {[%clk 0:01:14]}  Nh4 {[%clk 0:01:08]} 33. Qb2 {[%clk 0:00:41]}  Kh7 {[%clk 0:00:53]} 34. Bxh4 {[%clk 0:00:38]}  Bxh4 {[%clk 0:00:54]} 35. Bb5 {[%clk 0:00:31]}  Nd3 {[%clk 0:00:52]} 36. Qe2 {[%clk 0:00:25]}  Nf2+ {[%clk 0:00:52]} 37. Kxh2 {[%clk 0:00:21]}  Bg3+ {[%clk 0:00:51]} 38. Kg1 {[%clk 0:00:21]}  Qh4 {[%clk 0:00:51]} 39. Qxf2 {[%clk 0:00:20]}  Bxf2+ {[%clk 0:00:51]} 40. Kf1 {[%clk 0:00:21]}  Bxb6 {[%clk 0:00:51]} 41. Nxb6 {[%clk 0:00:21]}  Qh1+ {[%clk 0:00:50]} 42. Ke2 {[%clk 0:00:22]}  Rxg2+ {[%clk 0:00:51]} 43. Kd3 {[%clk 0:00:22]}  Qd1+ {[%clk 0:00:50]} 44. Kc4 {[%clk 0:00:23]}  Qd4+ {[%clk 0:00:50]} 45. Kb3 {[%clk 0:00:23]}  Rb2+ {[%clk 0:00:50]} 46. Ka3 {[%clk 0:00:22]}  Qb4# {[%clk 0:00:50]} 0-1


[Site "https://www.chess.com"]

[Event "Titled Tuesday Blitz March 22 Late 2022"]
[White "Zherebtsova, Alexandra"]
[Black "Cramling Bellon, Anna"]
[WhiteFideId "24129518"]
[BlackFideId "32009232"]
[WhiteElo "2025"]
[BlackElo "1905"]
[Result "1-0"]
[Round "03"]
[TimeControl "180+1"]
[Date "2022.03.22"]
[WhiteClock "0:00:22"]
[BlackClock "0:00:03"]

1. d4 {[%clk 0:03:00]}  Nf6 {[%clk 0:02:58]} 2. Nf3 {[%clk 0:03:00]}  d5 {[%clk 0:02:58]} 3. c4 {[%clk 0:03:01]}  e6 {[%clk 0:02:52]} 4. e3 {[%clk 0:02:59]}  c6 {[%clk 0:02:48]} 5. Nbd2 {[%clk 0:02:59]}  Nbd7 {[%clk 0:02:45]} 6. b3 {[%clk 0:02:59]}  Bb4 {[%clk 0:02:31]} 7. Bb2 {[%clk 0:02:58]}  Ne4 {[%clk 0:02:28]} 8. a3 {[%clk 0:02:58]}  Bc3 {[%clk 0:02:26]} 9. Bxc3 {[%clk 0:02:57]}  Nxc3 {[%clk 0:02:27]} 10. Qc2 {[%clk 0:02:57]}  Ne4 {[%clk 0:02:13]} 11. Nxe4 {[%clk 0:02:56]}  dxe4 {[%clk 0:02:12]} 12. Qxe4 {[%clk 0:02:56]}  O-O {[%clk 0:02:12]} 13. Bd3 {[%clk 0:02:54]}  Nf6 {[%clk 0:02:09]} 14. Qh4 {[%clk 0:02:50]}  c5 {[%clk 0:02:03]} 15. O-O {[%clk 0:02:47]}  Qe7 {[%clk 0:01:53]} 16. Ng5 {[%clk 0:02:44]}  h6 {[%clk 0:01:46]} 17. Ne4 {[%clk 0:02:31]}  cxd4 {[%clk 0:01:44]} 18. exd4 {[%clk 0:02:21]}  Rd8 {[%clk 0:01:43]} 19. Rfd1 {[%clk 0:02:14]}  Kf8 {[%clk 0:01:31]} 20. Nxf6 {[%clk 0:02:12]}  Qxf6 {[%clk 0:01:30]} 21. Qxf6 {[%clk 0:02:10]}  gxf6 {[%clk 0:01:31]} 22. Be4 {[%clk 0:02:11]}  Rb8 {[%clk 0:01:27]} 23. Kf1 {[%clk 0:02:08]}  b5 {[%clk 0:01:24]} 24. c5 {[%clk 0:02:05]}  b4 {[%clk 0:01:06]} 25. a4 {[%clk 0:01:41]}  Ba6+ {[%clk 0:01:05]} 26. Ke1 {[%clk 0:01:41]}  Ke7 {[%clk 0:01:02]} 27. Rac1 {[%clk 0:01:39]}  Rbc8 {[%clk 0:00:46]} 28. f3 {[%clk 0:01:39]}  f5 {[%clk 0:00:45]} 29. Bb1 {[%clk 0:01:32]}  Rd5 {[%clk 0:00:37]} 30. Rd2 {[%clk 0:01:26]}  Rcd8 {[%clk 0:00:34]} 31. Rcd1 {[%clk 0:01:26]}  Kf6 {[%clk 0:00:20]} 32. f4 {[%clk 0:01:26]}  Bb7 {[%clk 0:00:15]} 33. Kf2 {[%clk 0:01:23]}  Bc6 {[%clk 0:00:14]} 34. Ke3 {[%clk 0:01:22]}  R5d7 {[%clk 0:00:11]} 35. g3 {[%clk 0:01:22]}  h5 {[%clk 0:00:11]} 36. Rg1 {[%clk 0:01:09]}  Bd5 {[%clk 0:00:11]} 37. Bc2 {[%clk 0:01:08]}  a5 {[%clk 0:00:11]} 38. h4 {[%clk 0:01:06]}  Rg8 {[%clk 0:00:09]} 39. Bd1 {[%clk 0:01:06]}  Kg6 {[%clk 0:00:04]} 40. Be2 {[%clk 0:01:05]}  Kh6 {[%clk 0:00:03]} 41. Bb5 {[%clk 0:01:00]}  Rc7 {[%clk 0:00:03]} 42. Rd3 {[%clk 0:00:59]}  Be4 {[%clk 0:00:03]} 43. Rd2 {[%clk 0:00:58]}  Bd5 {[%clk 0:00:03]} 44. Rb2 {[%clk 0:00:58]}  f6 {[%clk 0:00:02]} 45. Kf2 {[%clk 0:00:46]}  Rcg7 {[%clk 0:00:02]} 46. Be2 {[%clk 0:00:45]}  Rc7 {[%clk 0:00:02]} 47. Bf3 {[%clk 0:00:45]}  Bxf3 {[%clk 0:00:02]} 48. Kxf3 {[%clk 0:00:45]}  Re8 {[%clk 0:00:02]} 49. Ke3 {[%clk 0:00:45]}  e5 {[%clk 0:00:03]} 50. fxe5 {[%clk 0:00:44]}  fxe5 {[%clk 0:00:04]} 51. Rc2 {[%clk 0:00:39]}  exd4+ {[%clk 0:00:03]} 52. Kxd4 {[%clk 0:00:39]}  Re4+ {[%clk 0:00:04]} 53. Kd5 {[%clk 0:00:37]}  Rd7+ {[%clk 0:00:02]} 54. Kc6 {[%clk 0:00:37]}  Rd3 {[%clk 0:00:02]} 55. Kb6 {[%clk 0:00:30]}  Rxb3 {[%clk 0:00:02]} 56. c6 {[%clk 0:00:30]}  Rc3 {[%clk 0:00:02]} 57. Rxc3 {[%clk 0:00:26]}  bxc3 {[%clk 0:00:03]} 58. c7 {[%clk 0:00:24]}  Rc4 {[%clk 0:00:02]} 59. Kb7 {[%clk 0:00:23]}  Rb4+ {[%clk 0:00:01]} 60. Kc8 {[%clk 0:00:22]}  c2 {[%clk 0:00:01]} 61. Rc1 {[%clk 0:00:22]}  Rc4 {[%clk 0:00:01]} 62. Kd7 {[%clk 0:00:22]}  Rd4+ {[%clk 0:00:01]} 63. Kc6 {[%clk 0:00:21]}  Rc4+ {[%clk 0:00:02]} 64. Kd6 {[%clk 0:00:22]}  Rd4+ {[%clk 0:00:02]} 65. Kc5 {[%clk 0:00:22]}  Rd1 {[%clk 0:00:02]} 66. Rxc2 {[%clk 0:00:22]}  Rd3 {[%clk 0:00:03]} 67. c8=Q {[%clk 0:00:21]}  Rf3 {[%clk 0:00:03]} 68. Kb6 {[%clk 0:00:20]}  Rxg3 {[%clk 0:00:04]} 69. Rc6+ {[%clk 0:00:20]}  Rg6 {[%clk 0:00:05]} 70. Rxg6+ {[%clk 0:00:20]}  Kxg6 {[%clk 0:00:05]} 71. Qe6+ {[%clk 0:00:20]}  Kg7 {[%clk 0:00:06]} 72. Qxf5 {[%clk 0:00:20]}  Kh6 {[%clk 0:00:05]} 73. Qg5+ {[%clk 0:00:21]}  Kh7 {[%clk 0:00:05]} 74. Qxh5+ {[%clk 0:00:21]}  Kg7 {[%clk 0:00:04]} 75. Qg5+ {[%clk 0:00:22]}  Kh7 {[%clk 0:00:03]} 76. Qxa5 {[%clk 0:00:22]}  Kg6 {[%clk 0:00:03]} 77. Qg5+ {[%clk 0:00:22]}  Kh7 {[%clk 0:00:03]} 78. a5 {[%clk 0:00:22]}  Kh8 {[%clk 0:00:02]} 79. a6 {[%clk 0:00:23]}  Kh7 {[%clk 0:00:03]} 80. a7 {[%clk 0:00:23]}  Kh8 {[%clk 0:00:02]} 81. a8=Q+ {[%clk 0:00:22]}  Kh7 {[%clk 0:00:03]} 82. Qag8# {[%clk 0:00:22]} 1-0


[Site "https://www.chess.com"]